fUSD/lending_fUSD_20260621
["ID","MTS","AMOUNT","RATE_DAILY","PERIOD"]
[425946932,1782041493000,-699.59,0.00027397,2]
[425946935,1782041493000,-2610.97766306,0.00027397,10]
[425946931,1782041493000,-500.0,0.00027397,2]
[425946938,1782041493000,-500.0,0.00027671,2]
[425946945,1782041493000,-342.38,0.00028964,2]
[425946940,1782041493000,-500.0,0.00027945,2]
[425946944,1782041493000,-412.2,0.00028797,7]
[425946946,1782041493000,-412.2,0.00028964,2]
[425946939,1782041493000,-699.59,0.00027671,2]
[425946947,1782041493000,-514687.13229677,0.00029,7]
[425946941,1782041493000,-342.38,0.0002863,30]
[425946942,1782041493000,-412.2,0.0002863,30]
[425946943,1782041493000,-342.38,0.00028797,7]
[425946948,1782041493000,-285.65294265,0.00029,7]
[425946949,1782041503000,150.0,0.00030136,120]
[425946950,1782041537000,-500.0,0.0001389,2]
[425946951,1782041552000,-500.0,0.0001389,2]
[425946952,1782041568000,-500.0,0.0001389,2]
[425946953,1782041584000,-500.0,0.0001389,2]
[425946954,1782041600000,-500.0,0.0001379,2]
[425946955,1782041602000,1056.0,0.00030137,120]
[425946956,1782041616000,-500.0,0.0001379,2]
[425946957,1782041633000,-448.18399884,0.00013612,2]
[425946958,1782041648000,-448.18399884,0.00013612,2]
[425946959,1782041663000,-500.0,0.00013612,2]
[425946960,1782041680000,-500.0,0.00013612,2]
[425946961,1782041750000,1193.25,0.00029452,120]
[425946962,1782041905000,872.0,0.0003013,120]
[425946964,1782041953000,159.93,0.00028877,120]
[425946963,1782041953000,159.93,0.00026252,120]
[425946970,1782042353000,150.0,0.00030136,120]
[425946999,1782042631000,-121.47413381,0.00013285,2]
[425946998,1782042631000,-128.52586619,0.00013285,2]
[425946997,1782042631000,-150.0,0.00013139,2]
[425947000,1782042631000,-250.0,0.00013422,2]
[425947002,1782042631000,-150.0,0.00013432,2]
[425947004,1782042631000,-249.0,0.00013513,2]
[425947003,1782042631000,-150.0,0.00013511,2]
[425947001,1782042631000,-181.62138466,0.00013432,2]
[425947030,1782042632000,-153.0,0.00013536,2]
[425947036,1782042632000,-172.96216204,0.00013543,2]
[425947038,1782042632000,-178.45607967,0.00013543,2]
[425947052,1782042632000,-181.62138465,0.00013611,2]
[425947057,1782042632000,-150.0,0.00013698,2]
[425947054,1782042632000,-153.0,0.00013611,2]
[425947044,1782042632000,-424.11687524,0.00013543,2]
[425947043,1782042632000,-482.7809995,0.00013543,2]
[425947040,1782042632000,-233.71317333,0.00013543,2]
[425947047,1782042632000,-1852.42,0.00013544,2]
[425947048,1782042632000,-151.0,0.00013545,2]
[425947061,1782042632000,-15055.48262129,0.00013789,2]
[425947059,1782042632000,-181.62138465,0.00013789,2]
[425947066,1782042632000,-3746.61731122,0.00013789,2]
[425947075,1782042632000,-500.0,0.00013889,2]
[425947077,1782042632000,-500.0,0.00013889,2]
[425947064,1782042632000,-7229.02546749,0.00013789,2]
[425947070,1782042632000,-151.29566893,0.0001379,2]
[425947068,1782042632000,-169.21806238,0.0001379,2]
[425947072,1782042632000,-1389.25782984,0.0001379,2]
[425947074,1782042632000,-477.2524228,0.00013889,2]
[425947050,1782042632000,-150.0,0.00013565,2]
[425947028,1782042632000,-151.0,0.00013533,2]
[425947012,1782042632000,-207.60618738,0.00013532,2]
[425947026,1782042632000,-500.0,0.00013532,2]
[425947008,1782042632000,-143.48979701,0.00013532,2]
[425947005,1782042632000,-150.0,0.00013515,2]
[425947006,1782042632000,-223.59672665,0.00013532,2]
[425947007,1782042632000,-356.51020299,0.00013532,2]
[425947009,1782042632000,-323.80705562,0.00013532,2]
[425947010,1782042632000,-176.19294438,0.00013532,2]
[425947076,1782042632000,-500.0,0.00013889,2]
[425947013,1782042632000,-341.18648526,0.00013532,2]
[425947014,1782042632000,-500.0,0.00013532,2]
[425947011,1782042632000,-292.39381262,0.00013532,2]
[425947016,1782042632000,-500.0,0.00013532,2]
[425947015,1782042632000,-500.0,0.00013532,2]
[425947017,1782042632000,-500.0,0.00013532,2]
[425947018,1782042632000,-500.0,0.00013532,2]
[425947019,1782042632000,-500.0,0.00013532,2]
[425947020,1782042632000,-500.0,0.00013532,2]
[425947032,1782042632000,-500.0,0.00013543,2]
[425947024,1782042632000,-500.0,0.00013532,2]
[425947023,1782042632000,-500.0,0.00013532,2]
[425947022,1782042632000,-500.0,0.00013532,2]
[425947021,1782042632000,-500.0,0.00013532,2]
[425947025,1782042632000,-500.0,0.00013532,2]
[425947079,1782042632000,-229.78,0.00013889,2]
[425947034,1782042632000,-500.0,0.00013543,2]
[425947087,1782042632000,-150.0,0.0001389,2]
[425947108,1782042632000,-197.53,0.0001571,2]
[425947116,1782042632000,-154.0,0.0002,2]
[425947112,1782042632000,-1389.25782976,0.0001835,2]
[425947106,1782042632000,-500.0,0.00015215,2]
[425947111,1782042632000,-197.53,0.00017363,2]
[425947114,1782042632000,-169.21806238,0.00019662,2]
[425947107,1782042632000,-1389.25782976,0.0001531,2]
[425947115,1782042632000,-1389.25782976,0.0001987,2]
[425947113,1782042632000,-1000.0,0.00019339,2]
[425947109,1782042632000,-1389.25782976,0.0001683,2]
[425947117,1782042632000,-170.0,0.0002,2]
[425947118,1782042632000,-171.0,0.0002,2]
[425947121,1782042632000,-299.99,0.00020145,7]
[425947120,1782042632000,-9999.99,0.00020145,2]
[425947119,1782042632000,-2252.48,0.00020145,2]
[425947122,1782042632000,-999.99,0.00020145,2]
[425947123,1782042632000,-9999.99,0.00020145,2]
[425947126,1782042632000,-499.25889863,0.00020145,2]
[425947127,1782042632000,-1075.43,0.00020145,2]
[425947125,1782042632000,-1554.64500146,0.00020145,2]
[425947078,1782042632000,-3793.359,0.00013889,2]
[425947103,1782042632000,-500.0,0.00014899,2]
[425947104,1782042632000,-454.36,0.00014899,2]
[425947110,1782042632000,-250.0,0.00017361,2]
[425947102,1782042632000,-500.0,0.00014899,2]
[425947089,1782042632000,-216.32317309,0.0001391,2]
[425947105,1782042632000,-154.86,0.00014899,2]
[425947088,1782042632000,-150.0,0.0001389,2]
[425947082,1782042632000,-500.0,0.00013889,2]
[425947081,1782042632000,-500.0,0.00013889,2]
[425947086,1782042632000,-150.0,0.0001389,2]
[425947083,1782042632000,-500.0,0.00013889,2]
[425947080,1782042632000,-500.0,0.00013889,2]
[425947085,1782042632000,-151.0,0.0001389,2]
[425947091,1782042632000,-250.0,0.00014,2]
[425947090,1782042632000,-160.0,0.0001391,2]
[425947084,1782042632000,-152.0,0.0001389,2]
[425947101,1782042632000,-500.0,0.00014899,2]
[425947100,1782042632000,-500.0,0.00014899,2]
[425947092,1782042632000,-500.0,0.00014163,2]
[425947096,1782042632000,-442.85529746,0.00014711,2]
[425947093,1782042632000,-500.0,0.00014437,2]
[425947097,1782042632000,-500.0,0.00014899,2]
[425947094,1782042632000,-302.06055743,0.00014453,2]
[425947099,1782042632000,-500.0,0.00014899,2]
[425947098,1782042632000,-500.0,0.00014899,2]
[425947095,1782042632000,-250.0,0.00014453,2]
[425947124,1782042632000,-150.99,0.00020145,2]
[425947171,1782042638000,-171.0,0.00023,2]
[425947172,1782042638000,-260.0,0.00023,2]
[425947170,1782042638000,-170.0,0.00023,2]
[425947167,1782042638000,-744.55,0.00022,2]
[425947164,1782042638000,-154.0,0.00022,2]
[425947165,1782042638000,-170.0,0.00022,2]
[425947166,1782042638000,-171.0,0.00022,2]
[425947169,1782042638000,-1389.25782976,0.00022911,2]
[425947174,1782042638000,-578.20924308,0.00023237,2]
[425947168,1782042638000,-250.0,0.00022696,2]
[425947173,1782042638000,-500.0,0.00023237,2]
[425947186,1782042638000,-941.121,0.00024559,2]
[425947176,1782042638000,-367.71889968,0.00023785,2]
[425947177,1782042638000,-170.0,0.00024,2]
[425947181,1782042638000,-1077.0,0.0002443,5]
[425947178,1782042638000,-171.0,0.00024,2]
[425947180,1782042638000,-1000.0,0.00024327,2]
[425947182,1782042638000,-1389.25782976,0.00024431,2]
[425947179,1782042638000,-1181.70894976,0.00024226,2]
[425947183,1782042638000,-1276.0,0.00024559,2]
[425947185,1782042638000,-383.0,0.00024559,2]
[425947163,1782042638000,-5000.0,0.00021918,2]
[425947175,1782042638000,-159.93,0.00023627,2]
[425947162,1782042638000,-173.76446373,0.00021914,2]
[425947138,1782042638000,-2138.2,0.00020145,2]
[425947160,1782042638000,-1389.25782976,0.00021391,2]
[425947137,1782042638000,-103.81609991,0.00020145,2]
[425947136,1782042638000,-217.0,0.00013831,2]
[425947189,1782042638000,-333.56,0.00024658,2]
[425947139,1782042638000,-253611.3,0.00020145,2]
[425947140,1782042638000,-939.62,0.00020145,2]
[425947141,1782042638000,-23598.73,0.00020145,2]
[425947142,1782042638000,-151.29566892,0.00020681,2]
[425947143,1782042638000,-200.0,0.00020761,2]
[425947145,1782042638000,-170.0,0.00021,2]
[425947144,1782042638000,-154.0,0.00021,2]
[425947147,1782042638000,-159.93,0.00021002,2]
[425947161,1782042638000,-305.93,0.00021644,4]
[425947146,1782042638000,-171.0,0.00021,2]
[425947148,1782042638000,-151.0,0.00021267,2]
[425947149,1782042638000,-151.0,0.00021267,2]
[425947151,1782042638000,-151.0,0.00021267,2]
[425947152,1782042638000,-151.0,0.00021267,2]
[425947154,1782042638000,-151.0,0.00021267,2]
[425947153,1782042638000,-151.0,0.00021267,2]
[425947155,1782042638000,-151.0,0.00021267,2]
[425947156,1782042638000,-151.0,0.00021267,2]
[425947159,1782042638000,-151.0,0.00021267,2]
[425947158,1782042638000,-151.0,0.00021267,2]
[425947157,1782042638000,-151.0,0.00021267,2]
[425947150,1782042638000,-151.0,0.00021267,2]
[425947187,1782042638000,-215.0,0.00024559,2]
[425947184,1782042638000,-1360.0,0.00024559,2]
[425947188,1782042638000,-728.77,0.00024622,7]
[425947224,1782042638000,-585.0,0.00026849,2]
[425947223,1782042638000,-585.0,0.00026849,2]
[425947218,1782042638000,-585.0,0.00026849,2]
[425947227,1782042638000,-585.0,0.00026849,2]
[425947225,1782042638000,-585.0,0.00026849,2]
[425947216,1782042638000,-585.0,0.00026849,2]
[425947222,1782042638000,-585.0,0.00026849,2]
[425947221,1782042638000,-585.0,0.00026849,2]
[425947226,1782042638000,-585.0,0.00026849,2]
[425947228,1782042638000,-585.0,0.00026849,2]
[425947229,1782042638000,-585.0,0.00026849,2]
[425947220,1782042638000,-585.0,0.00026849,2]
[425947233,1782042638000,-585.0,0.00026849,2]
[425947241,1782042638000,-500.0,0.00026849,2]
[425947239,1782042638000,-599.37489269,0.00026849,2]
[425947237,1782042638000,-585.0,0.00026849,2]
[425947235,1782042638000,-585.0,0.00026849,2]
[425947236,1782042638000,-585.0,0.00026849,2]
[425947231,1782042638000,-585.0,0.00026849,2]
[425947238,1782042638000,-585.0,0.00026849,2]
[425947234,1782042638000,-585.0,0.00026849,2]
[425947240,1782042638000,-500.0,0.00026849,2]
[425947242,1782042638000,-500.0,0.00026849,2]
[425947191,1782042638000,-172.0,0.00025,2]
[425947232,1782042638000,-585.0,0.00026849,2]
[425947219,1782042638000,-585.0,0.00026849,2]
[425947230,1782042638000,-585.0,0.00026849,2]
[425947214,1782042638000,-530.13183522,0.00026849,2]
[425947190,1782042638000,-155.66,0.00024658,2]
[425947217,1782042638000,-585.0,0.00026849,2]
[425947193,1782042638000,-1939.0,0.00025,5]
[425947194,1782042638000,-155.66,0.0002544,7]
[425947196,1782042638000,-1389.25782976,0.00025951,2]
[425947192,1782042638000,-186.0,0.00025,2]
[425947195,1782042638000,-169.21806238,0.00025534,2]
[425947198,1782042638000,-155.66,0.00026223,30]
[425947199,1782042638000,-1181.70894976,0.00026313,2]
[425947200,1782042638000,-5391.9012465,0.00026615,2]
[425947201,1782042638000,-152.0,0.00026715,3]
[425947204,1782042638000,-500.0,0.00026849,2]
[425947197,1782042638000,-231.61287442,0.00025976,2]
[425947212,1782042638000,-500.0,0.00026849,2]
[425947215,1782042638000,-151.20685336,0.00026849,2]
[425947203,1782042638000,-500.0,0.00026849,2]
[425947211,1782042638000,-500.0,0.00026849,2]
[425947209,1782042638000,-500.0,0.00026849,2]
[425947213,1782042638000,-500.0,0.00026849,2]
[425947210,1782042638000,-500.0,0.00026849,2]
[425947206,1782042638000,-500.0,0.00026849,2]
[425947207,1782042638000,-500.0,0.00026849,2]
[425947205,1782042638000,-501.75268826,0.00026849,2]
[425947208,1782042638000,-500.0,0.00026849,2]
[425947202,1782042638000,-5391.90124646,0.00026752,2]
[425947287,1782042639000,-500.0,0.00027397,2]
[425947284,1782042639000,-500.0,0.00027397,2]
[425947282,1782042639000,-500.0,0.00027397,2]
[425947289,1782042639000,-500.0,0.00027397,2]
[425947280,1782042639000,-868.0,0.00027397,5]
[425947273,1782042639000,-514.84466244,0.00027396,2]
[425947278,1782042639000,-500.0,0.00027396,2]
[425947276,1782042639000,-500.0,0.00027396,2]
[425947274,1782042639000,-514.84466244,0.00027396,2]
[425947275,1782042639000,-500.0,0.00027396,2]
[425947288,1782042639000,-500.0,0.00027397,2]
[425947279,1782042639000,-500.0,0.00027396,2]
[425947283,1782042639000,-513.44426899,0.00027397,2]
[425947295,1782042639000,-524.45342663,0.00027397,2]
[425947285,1782042639000,-156.942245,0.00027397,2]
[425947286,1782042639000,-500.0,0.00027397,2]
[425947290,1782042639000,-500.0,0.00027397,2]
[425947291,1782042639000,-720.68,0.00027397,2]
[425947294,1782042639000,-500.0,0.00027397,2]
[425947292,1782042639000,-500.0,0.00027397,2]
[425947293,1782042639000,-500.0,0.00027397,2]
[425947300,1782042639000,-1477.98,0.00027397,2]
[425947296,1782042639000,-500.0,0.00027397,2]
[425947299,1782042639000,-500.0,0.00027397,2]
[425947298,1782042639000,-510.16,0.00027397,2]
[425947277,1782042639000,-500.0,0.00027396,2]
[425947281,1782042639000,-500.0,0.00027397,2]
[425947272,1782042639000,-514.84466244,0.00027396,2]
[425947244,1782042639000,-500.0,0.00026849,2]
[425947269,1782042639000,-514.84466245,0.00027396,2]
[425947243,1782042639000,-500.0,0.00026849,2]
[425947245,1782042639000,-500.0,0.00026849,2]
[425947247,1782042639000,-500.0,0.00026849,2]
[425947248,1782042639000,-500.0,0.00026849,2]
[425947246,1782042639000,-500.0,0.00026849,2]
[425947250,1782042639000,-500.0,0.00026849,2]
[425947254,1782042639000,-7000.0,0.00027,3]
[425947251,1782042639000,-500.0,0.00026849,2]
[425947252,1782042639000,-517.50702938,0.00026849,2]
[425947249,1782042639000,-500.0,0.00026849,2]
[425947253,1782042639000,-5391.90124646,0.00026888,2]
[425947255,1782042639000,-155.66,0.00027006,2]
[425947271,1782042639000,-514.84466244,0.00027396,2]
[425947256,1782042639000,-5391.90124646,0.00027025,2]
[425947301,1782042639000,-545.28203543,0.00027397,2]
[425947263,1782042639000,-514.84466245,0.00027396,2]
[425947259,1782042639000,-10000.0,0.00027297,2]
[425947262,1782042639000,-514.84466245,0.00027396,2]
[425947261,1782042639000,-514.84466245,0.00027396,2]
[425947264,1782042639000,-514.84466245,0.00027396,2]
[425947258,1782042639000,-705.02,0.00027245,7]
[425947265,1782042639000,-514.84466245,0.00027396,2]
[425947266,1782042639000,-514.84466245,0.00027396,2]
[425947267,1782042639000,-514.84466245,0.00027396,2]
[425947268,1782042639000,-514.84466245,0.00027396,2]
[425947270,1782042639000,-514.84466244,0.00027396,2]
[425947257,1782042639000,-5391.90124646,0.00027162,2]
[425947297,1782042639000,-500.0,0.00027397,2]
[425947260,1782042639000,-5391.90124646,0.00027298,2]
[425947304,1782042639000,-537.97,0.00027397,2]
[425947336,1782042639000,-499.13764294,0.00027397,2]
[425947333,1782042639000,-500.0,0.00027397,2]
[425947334,1782042639000,-538.55772886,0.00027397,2]
[425947335,1782042639000,-781.19,0.00027397,2]
[425947339,1782042639000,-500.0,0.00027397,2]
[425947341,1782042639000,-500.0,0.00027397,2]
[425947340,1782042639000,-500.0,0.00027397,2]
[425947342,1782042639000,-500.0,0.00027397,2]
[425947344,1782042639000,-500.0,0.00027397,2]
[425947346,1782042639000,-567.38,0.00027397,2]
[425947347,1782042639000,-500.0,0.00027397,2]
[425947345,1782042639000,-396.38899399,0.00027397,2]
[425947332,1782042639000,-500.0,0.00027397,2]
[425947343,1782042639000,-500.0,0.00027397,2]
[425947349,1782042639000,-500.0,0.00027397,2]
[425947348,1782042639000,-951.58,0.00027397,2]
[425947352,1782042639000,-500.0,0.00027397,2]
[425947351,1782042639000,-500.0,0.00027397,2]
[425947354,1782042639000,-500.0,0.00027397,2]
[425947357,1782042639000,-500.0,0.00027397,2]
[425947355,1782042639000,-500.0,0.00027397,2]
[425947358,1782042639000,-501.71755419,0.00027397,2]
[425947353,1782042639000,-500.0,0.00027397,2]
[425947360,1782042639000,-500.0,0.00027397,2]
[425947356,1782042639000,-1141.49,0.00027397,2]
[425947361,1782042639000,-500.0,0.00027397,2]
[425947350,1782042639000,-500.0,0.00027397,2]
[425947330,1782042639000,-500.0,0.00027397,2]
[425947359,1782042639000,-500.0,0.00027397,2]
[425947329,1782042639000,-500.0,0.00027397,2]
[425947338,1782042639000,-500.0,0.00027397,2]
[425947303,1782042639000,-500.0,0.00027397,2]
[425947311,1782042639000,-500.0,0.00027397,2]
[425947312,1782042639000,-500.0,0.00027397,2]
[425947306,1782042639000,-500.0,0.00027397,2]
[425947313,1782042639000,-500.0,0.00027397,2]
[425947305,1782042639000,-1005.32,0.00027397,2]
[425947307,1782042639000,-500.0,0.00027397,2]
[425947309,1782042639000,-500.0,0.00027397,2]
[425947308,1782042639000,-500.0,0.00027397,2]
[425947310,1782042639000,-500.0,0.00027397,2]
[425947315,1782042639000,-500.0,0.00027397,2]
[425947314,1782042639000,-500.0,0.00027397,2]
[425947318,1782042639000,-500.0,0.00027397,2]
[425947302,1782042639000,-500.0,0.00027397,2]
[425947317,1782042639000,-500.0,0.00027397,2]
[425947316,1782042639000,-500.0,0.00027397,2]
[425947328,1782042639000,-500.0,0.00027397,2]
[425947327,1782042639000,-500.0,0.00027397,2]
[425947326,1782042639000,-500.0,0.00027397,2]
[425947324,1782042639000,-500.0,0.00027397,2]
[425947337,1782042639000,-589.9,0.00027397,2]
[425947320,1782042639000,-500.0,0.00027397,2]
[425947322,1782042639000,-500.0,0.00027397,2]
[425947325,1782042639000,-620.64352407,0.00027397,2]
[425947331,1782042639000,-500.0,0.00027397,2]
[425947319,1782042639000,-500.0,0.00027397,2]
[425947323,1782042639000,-500.0,0.00027397,2]
[425947321,1782042639000,-1067.39,0.00027397,2]
[425947394,1782042640000,-500.0,0.00027397,2]
[425947403,1782042640000,-500.0,0.00027397,2]
[425947392,1782042640000,-500.0,0.00027397,2]
[425947395,1782042640000,-500.0,0.00027397,2]
[425947396,1782042640000,-500.0,0.00027397,2]
[425947393,1782042640000,-500.0,0.00027397,2]
[425947399,1782042640000,-500.0,0.00027397,2]
[425947398,1782042640000,-500.0,0.00027397,2]
[425947400,1782042640000,-500.0,0.00027397,2]
[425947401,1782042640000,-508.7160116,0.00027397,2]
[425947397,1782042640000,-500.0,0.00027397,2]
[425947414,1782042640000,-500.0,0.00027397,2]
[425947404,1782042640000,-500.0,0.00027397,2]
[425947409,1782042640000,-500.0,0.00027397,2]
[425947406,1782042640000,-868.1,0.00027397,2]
[425947405,1782042640000,-500.0,0.00027397,2]
[425947390,1782042640000,-506.06235668,0.00027397,2]
[425947413,1782042640000,-500.0,0.00027397,2]
[425947412,1782042640000,-500.0,0.00027397,2]
[425947411,1782042640000,-500.0,0.00027397,2]
[425947407,1782042640000,-500.0,0.00027397,2]
[425947408,1782042640000,-500.0,0.00027397,2]
[425947410,1782042640000,-500.0,0.00027397,2]
[425947415,1782042640000,-500.0,0.00027397,2]
[425947420,1782042640000,-500.0,0.00027397,2]
[425947402,1782042640000,-500.0,0.00027397,2]
[425947391,1782042640000,-500.0,0.00027397,2]
[425947384,1782042640000,-1000.0,0.00027397,2]
[425947389,1782042640000,-534.93869648,0.00027397,2]
[425947416,1782042640000,-500.0,0.00027397,2]
[425947363,1782042640000,-570.55,0.00027397,2]
[425947362,1782042640000,-500.0,0.00027397,2]
[425947364,1782042640000,-500.0,0.00027397,2]
[425947365,1782042640000,-500.0,0.00027397,2]
[425947366,1782042640000,-500.0,0.00027397,2]
[425947367,1782042640000,-500.0,0.00027397,2]
[425947368,1782042640000,-500.0,0.00027397,2]
[425947369,1782042640000,-500.0,0.00027397,2]
[425947372,1782042640000,-500.0,0.00027397,2]
[425947371,1782042640000,-500.0,0.00027397,2]
[425947373,1782042640000,-500.0,0.00027397,2]
[425947370,1782042640000,-500.0,0.00027397,2]
[425947375,1782042640000,-500.0,0.00027397,2]
[425947376,1782042640000,-500.0,0.00027397,2]
[425947377,1782042640000,-500.0,0.00027397,2]
[425947378,1782042640000,-500.0,0.00027397,2]
[425947379,1782042640000,-500.0,0.00027397,2]
[425947380,1782042640000,-500.0,0.00027397,2]
[425947383,1782042640000,-500.0,0.00027397,2]
[425947381,1782042640000,-862.14,0.00027397,2]
[425947382,1782042640000,-500.0,0.00027397,2]
[425947386,1782042640000,-1018.9,0.00027397,2]
[425947385,1782042640000,-500.0,0.00027397,2]
[425947387,1782042640000,-500.0,0.00027397,2]
[425947388,1782042640000,-500.0,0.00027397,2]
[425947374,1782042640000,-500.0,0.00027397,2]
[425947427,1782042640000,-500.0,0.00027397,2]
[425947422,1782042640000,-500.0,0.00027397,2]
[425947450,1782042640000,-500.0,0.00027397,2]
[425947452,1782042640000,-500.0,0.00027397,2]
[425947454,1782042640000,-500.0,0.00027397,2]
[425947464,1782042640000,-500.0,0.00027397,2]
[425947465,1782042640000,-500.0,0.00027397,2]
[425947453,1782042640000,-500.0,0.00027397,2]
[425947462,1782042640000,-500.0,0.00027397,2]
[425947457,1782042640000,-500.0,0.00027397,2]
[425947456,1782042640000,-514.32169163,0.00027397,2]
[425947461,1782042640000,-500.0,0.00027397,2]
[425947460,1782042640000,-500.0,0.00027397,2]
[425947455,1782042640000,-500.0,0.00027397,2]
[425947447,1782042640000,-500.0,0.00027397,2]
[425947458,1782042640000,-500.0,0.00027397,2]
[425947466,1782042640000,-500.0,0.00027397,2]
[425947468,1782042640000,-500.0,0.00027397,2]
[425947467,1782042640000,-500.0,0.00027397,2]
[425947469,1782042640000,-500.0,0.00027397,2]
[425947470,1782042640000,-500.0,0.00027397,2]
[425947476,1782042640000,-500.0,0.00027397,2]
[425947473,1782042640000,-500.0,0.00027397,2]
[425947472,1782042640000,-523.34070267,0.00027397,2]
[425947471,1782042640000,-500.0,0.00027397,2]
[425947474,1782042640000,-559.47968489,0.00027397,2]
[425947475,1782042640000,-500.0,0.00027397,2]
[425947425,1782042640000,-500.0,0.00027397,2]
[425947463,1782042640000,-500.0,0.00027397,2]
[425947451,1782042640000,-500.0,0.00027397,2]
[425947459,1782042640000,-583.76,0.00027397,2]
[425947449,1782042640000,-500.0,0.00027397,2]
[425947421,1782042640000,-426.45775323,0.00027397,2]
[425947448,1782042640000,-500.0,0.00027397,2]
[425947417,1782042640000,-500.0,0.00027397,2]
[425947426,1782042640000,-500.0,0.00027397,2]
[425947418,1782042640000,-500.0,0.00027397,2]
[425947424,1782042640000,-500.0,0.00027397,2]
[425947419,1782042640000,-500.0,0.00027397,2]
[425947423,1782042640000,-500.0,0.00027397,2]
[425947429,1782042640000,-500.0,0.00027397,2]
[425947432,1782042640000,-500.0,0.00027397,2]
[425947431,1782042640000,-500.0,0.00027397,2]
[425947434,1782042640000,-500.0,0.00027397,2]
[425947433,1782042640000,-500.0,0.00027397,2]
[425947428,1782042640000,-500.0,0.00027397,2]
[425947442,1782042640000,-500.0,0.00027397,2]
[425947437,1782042640000,-500.0,0.00027397,2]
[425947438,1782042640000,-500.0,0.00027397,2]
[425947435,1782042640000,-500.0,0.00027397,2]
[425947439,1782042640000,-500.0,0.00027397,2]
[425947430,1782042640000,-500.0,0.00027397,2]
[425947440,1782042640000,-500.0,0.00027397,2]
[425947441,1782042640000,-491.40629313,0.00027397,2]
[425947446,1782042640000,-608.21,0.00027397,2]
[425947445,1782042640000,-500.0,0.00027397,2]
[425947436,1782042640000,-500.0,0.00027397,2]
[425947444,1782042640000,-500.0,0.00027397,2]
[425947443,1782042640000,-500.0,0.00027397,2]
[425947521,1782042641000,-500.0,0.00027397,2]
[425947523,1782042641000,-500.0,0.00027397,2]
[425947510,1782042641000,-500.0,0.00027397,2]
[425947519,1782042641000,-500.0,0.00027397,2]
[425947516,1782042641000,-512.55707541,0.00027397,2]
[425947518,1782042641000,-500.0,0.00027397,2]
[425947506,1782042641000,-500.0,0.00027397,2]
[425947514,1782042641000,-500.0,0.00027397,2]
[425947513,1782042641000,-500.0,0.00027397,2]
[425947512,1782042641000,-500.0,0.00027397,2]
[425947517,1782042641000,-500.0,0.00027397,2]
[425947515,1782042641000,-500.0,0.00027397,2]
[425947524,1782042641000,-500.0,0.00027397,2]
[425947535,1782042641000,-500.0,0.00027397,2]
[425947520,1782042641000,-4612.74,0.00027397,2]
[425947526,1782042641000,-791.12,0.00027397,2]
[425947525,1782042641000,-500.0,0.00027397,2]
[425947529,1782042641000,-500.0,0.00027397,2]
[425947528,1782042641000,-500.0,0.00027397,2]
[425947527,1782042641000,-500.0,0.00027397,2]
[425947532,1782042641000,-500.0,0.00027397,2]
[425947534,1782042641000,-500.0,0.00027397,2]